fUST/lending_fUST_20241011
["ID","MTS","AMOUNT","RATE_DAILY","PERIOD"]
[340118381,1728623440563,-789.0,0.00028,2]
[340118382,1728623440572,-167.108162,0.00028025,2]
[340118383,1728623440583,-399.374774,0.00028042,2]
[340118384,1728623440595,-500.0,0.0002815,5]
[340118385,1728623440606,-501.51634767,0.0002847,2]
[340118386,1728623440616,-169.839838,0.00028582,2]
[340118387,1728623440627,-420.0,0.00028627,2]
[340118388,1728623440638,-168.08970573,0.0002876,5]
[340118389,1728623440648,-500.0,0.0002876,5]
[340118390,1728623440657,-333.57706255,0.00029077,2]
[340118391,1728623440669,-420.0,0.00029111,2]
[340118392,1728623440679,-611.73077265,0.00029177,2]
[340118393,1728623440690,-170.883056,0.00029493,2]
[340118394,1728623440700,-501.70662504,0.0002952,5]
[340118395,1728623440710,-333.57706253,0.00030005,2]
[340118396,1728623440720,-1000.0,0.0003013,5]
[340118397,1728623440730,-1001.0,0.00030137,120]
[340118398,1728623440741,-150.0,0.00030338,2]
[340118399,1728623440752,-150.0,0.00030338,2]
[340118400,1728623440762,-526.0,0.00030338,2]
[340118401,1728623440773,-472.33653863,0.00030636,2]
[340118402,1728623440784,-160.0,0.000307,3]
[340118403,1728623440797,-333.57706253,0.00030934,2]
[340118404,1728623440808,-587.0,0.00030966,2]
[340118405,1728623440818,-2485.5773466,0.0003135,2]
[340118406,1728623440827,-169.40087702,0.0003175,2]
[340118407,1728623440840,-160.0,0.0003185,4]
[340118408,1728623440850,-2485.5773466,0.0003185,2]
[340118409,1728623440860,-333.57706253,0.00031862,2]
[340118410,1728623440871,-500.0,0.00031999,2]
[340118411,1728623440880,-500.0,0.00031999,2]
[340118412,1728623440891,-500.0,0.00031999,2]
[340118413,1728623440901,-500.0,0.00031999,2]
[340118414,1728623440913,-500.0,0.00031999,2]
[340118415,1728623440924,-500.0,0.00031999,2]
[340118416,1728623440934,-500.0,0.00031999,2]
[340118417,1728623440943,-500.0,0.00031999,2]
[340118418,1728623440953,-500.0,0.00031999,2]
[340118419,1728623441038,-500.0,0.00031999,2]
[340118420,1728623441047,-156.4668133,0.00031999,2]
[340118421,1728623441057,-500.0,0.00031999,2]
[340118422,1728623441067,-500.0,0.00031999,2]
[340118423,1728623441077,-500.0,0.00031999,2]
[340118424,1728623441087,-500.0,0.00031999,2]
[340118425,1728623441098,-500.0,0.00031999,2]
[340118426,1728623441108,-500.0,0.00031999,2]
[340118427,1728623441117,-500.0,0.00031999,2]
[340118428,1728623441127,-500.0,0.00031999,2]
[340118429,1728623441137,-500.0,0.00031999,2]
[340118430,1728623441149,-19492.0,0.00032,2]
[340118431,1728623441161,-587.0,0.00032022,2]
[340118432,1728623441172,-6454.0349285,0.00032053,2]
[340118433,1728623441183,-6454.0349285,0.00032065,2]
[340118434,1728623441195,-479.233435,0.00032111,10]
[340118435,1728623441207,-1500.0,0.00032133,5]
[340118436,1728623441218,-465.36682693,0.00032168,2]
[340118437,1728623441228,-169.40087702,0.0003227,2]
[340118438,1728623441237,-7622.7860711,0.00032339,4]
[340118439,1728623441247,-777.42807404,0.00032339,4]
[340118440,1728623441257,-2485.5773466,0.0003235,2]
[340118441,1728623441266,-6454.0349285,0.00032528,2]
[340118442,1728623441275,-201.0,0.0003255,27]
[340118443,1728623441285,-7622.7860711,0.0003258,4]
[340118444,1728623441294,-777.42807404,0.0003258,4]
[340118445,1728623441304,-12756.1627178,0.000326,2]
[340118472,1728624038543,1000.0,0.00022,2]
[340118473,1728624045811,-266.0,0.00026986,2]
[340118474,1728624076234,-152.388457,0.00026986,2]
[340118475,1728624076269,-169.83984,0.00027218,2]
[340118476,1728624076304,-162.946412,0.00027926,2]
[340118477,1728624076338,-162.946412,0.00028012,2]
[340118478,1728624076370,-162.946412,0.00028098,2]
[340118479,1728624076766,170.883056,0.00027388,2]
[340118480,1728624094733,155.0,0.00028183,2]
[340118481,1728624095516,145.981878,0.00027882,2]
[340118483,1728624163706,-416.618448,0.0002775,2]
[340118484,1728624163730,-416.618448,0.00027882,2]
[340118485,1728624163824,-166.763104,0.00027882,2]
[340118486,1728624172402,-494.225929,0.00027882,2]
[340118487,1728624172421,-162.946412,0.00028183,2]
[340118488,1728624172431,-162.946412,0.00028269,2]
[340118489,1728624172441,-162.946412,0.00028354,2]
[340118490,1728624190103,-162.946412,0.0002844,2]
[340118491,1728624190136,-162.946412,0.00028526,2]
[340118492,1728624190159,-162.946412,0.00028567,2]
[340118493,1728624190172,-162.946412,0.00028567,2]
[340118494,1728624190183,-348.214352,0.00028567,2]
[340118495,1728624195214,-450.517817,0.00028567,2]
[340118496,1728624195237,-98.964366,0.00028567,2]
[340118497,1728624195255,-300.0,0.00028597,2]
[340118498,1728624195269,-150.517817,0.00028597,2]
[340118499,1728624491959,4418.0,0.000167,2]
[340118526,1728624632729,-947.60316994,0.000223,2]
[340118531,1728624638802,-375.00499603,0.000223,2]
[340118532,1728624638812,-1067.58748313,0.00024,2]
[340118533,1728624640602,-185.02685419,0.00024,2]
[340118534,1728624640612,-1302.28589115,0.000245,2]
[340118535,1728624640624,-343.674916,0.00026986,2]
[340118536,1728624640635,-162.946412,0.00027737,2]
[340118537,1728624640646,-1155.07478223,0.0002778,2]
[340118538,1728624640657,-162.946412,0.00027897,2]
[340118539,1728624640666,-169.40087702,0.00027958,2]
[340118540,1728624640678,-423.36524868,0.00027958,2]
[340118541,1728624640688,-500.0,0.00027973,5]
[340118542,1728624640698,-501.51634767,0.00027973,2]
[340118543,1728624640709,-300.0,0.00027983,2]
[340118544,1728624640718,-300.0,0.00027983,2]
[340118545,1728624640727,-13470.3005086,0.00027986,2]
[340118546,1728624640736,-31786.74536686,0.0002799,2]
[340118547,1728624640746,-162.946412,0.00028058,2]
[340118548,1728624640757,-162.946412,0.00028219,2]
[340118549,1728624640767,-162.946412,0.00028379,2]
[340118550,1728624640778,-162.946412,0.0002854,2]
[340118551,1728624640791,-547.068,0.00028598,2]
[340118552,1728624640801,-150.761,0.00028598,2]
[340118553,1728624640811,-162.946412,0.000287,2]
[340118554,1728624640822,-162.946412,0.00028861,2]
[340118555,1728624640832,-168.08970573,0.00028975,5]
[340118556,1728624640843,-500.0,0.0002898,5]
[340118557,1728624640853,-162.946412,0.00029022,2]
[340118558,1728624640862,-611.73077265,0.00029098,2]
[340118559,1728624640872,-423.36524868,0.00029138,2]
[340118560,1728624640881,-162.946412,0.00029182,2]
[340118561,1728624640890,-1223.589359,0.00029252,2]
[340118562,1728624640899,-501.70662504,0.00029342,5]
[340118563,1728624640909,-5559.90368027,0.00029995,2]
[340118564,1728624640918,-500.0,0.00029999,2]
[340118565,1728624640928,-500.0,0.00029999,2]
[340118566,1728624640937,-500.0,0.00029999,2]
[340118567,1728624640947,-500.0,0.00029999,2]
[340118568,1728624640956,-500.0,0.00029999,2]
[340118569,1728624640966,-500.0,0.00029999,2]
[340118570,1728624640976,-500.0,0.00029999,2]
[340118571,1728624640986,-500.0,0.00029999,2]
[340118572,1728624640997,-500.0,0.00029999,2]
[340118573,1728624641007,-500.0,0.00029999,2]
[340118574,1728624641016,-500.0,0.00029999,2]
[340118575,1728624641026,-500.0,0.00029999,2]
[340118576,1728624641035,-200.0,0.00029999,2]
[340118577,1728624641045,-500.0,0.00029999,2]
[340118578,1728624641054,-500.0,0.00029999,2]
[340118579,1728624641064,-21162.31884,0.0003,2]
[340118580,1728624641074,-1313.38335301,0.0003,7]
[340118581,1728624641083,-1500.0,0.0003,2]
[340118582,1728624641093,-164.655915,0.00030195,2]
[340118583,1728624641103,-420.0,0.00030222,2]
[340118584,1728624641113,-169.40087702,0.00030314,2]
[340118585,1728624641122,-423.36524868,0.00030319,2]
[340118586,1728624641132,-1000.0,0.0003035,5]
[340118587,1728624641142,-472.33653863,0.00030553,2]
[340118588,1728624641151,-236.54009943,0.00030636,26]
[340118589,1728624641160,-160.0,0.000307,3]
[340118590,1728624641170,-420.0,0.00030781,2]
[340118591,1728624641179,-2885.5773466,0.0003135,2]
[340118592,1728624641189,-423.36524868,0.00031499,2]
[340118593,1728624641200,-765.34,0.00031588,3]
[340118594,1728624641209,-150.0,0.00031598,2]
[340118595,1728624641219,-160.0,0.00031657,5]
[340118596,1728624641228,-200.0,0.00031774,5]
[340118597,1728624641239,-167.86,0.0003184,10]
[340118598,1728624641248,-160.0,0.0003185,4]
[340118599,1728624641257,-2885.5773466,0.0003185,2]
[340118600,1728624641266,-13530.77388889,0.00032,4]
[340118631,1728625287071,414.0,0.0002,10]
[340118650,1728625831881,-343.674916,0.00026986,2]
[340118651,1728625831891,-500.0,0.00027397,30]
[340118652,1728625831900,-500.0,0.00027397,60]
[340118653,1728625831910,-300.0,0.00027999,2]
[340118654,1728625831924,-300.0,0.00027999,2]
[340118655,1728625831934,-1000.0,0.00028,2]
[340118656,1728625831943,-1000.0,0.00028,2]
[340118657,1728625831954,-1000.0,0.00028,2]
[340118658,1728625831963,-789.0,0.00028,2]
[340118659,1728625831973,-164.655915,0.00028176,2]
[340118660,1728625831983,-167.769485,0.00028272,2]
[340118661,1728625831992,-332.848116,0.00028369,2]
[340118662,1728625832002,-807.1804969,0.00028372,2]
[340118663,1728625832012,-171.672887,0.00028444,2]
[340118664,1728625832023,-171.672887,0.00028608,2]
[340118665,1728625832034,-171.672887,0.00028773,2]
[340118666,1728625832043,-150.0,0.0002885,2]
[340118667,1728625832053,-574.834,0.0002885,2]
[340118668,1728625832063,-171.672887,0.00028938,2]
[340118669,1728625832072,-171.672887,0.00029102,2]
[340118670,1728625832084,-171.672887,0.00029267,2]
[340118671,1728625832094,-171.672887,0.00029432,2]
[340118672,1728625832104,-171.672887,0.00029596,2]
[340118673,1728625832113,-171.672887,0.00029761,2]
[340118674,1728625832124,-171.672887,0.00029926,2]
[340118675,1728625832135,-420.0,0.00030239,2]
[340118676,1728625832145,-160.0,0.0003024,3]
[340118677,1728625832154,-420.0,0.00030799,2]
[340118678,1728625832165,-160.0,0.0003093,4]
[340118679,1728625832175,-236.54009943,0.00030942,27]
[340118680,1728625832185,-1085.01461361,0.00031024,2]
[340118705,1728625837934,-809.23017635,0.00031024,2]
[340118706,1728625837990,-716.08664093,0.00031024,2]
[340118707,1728625838160,-3206.64012351,0.00031024,2]
[340118752,1728627038260,-343.674916,0.00026986,2]
[340118753,1728627038270,-96.10640606,0.00027536,2]
[340118754,1728627038282,-71.66307894,0.00027536,2]
[340118755,1728627038291,-291.450607,0.0002773,2]
[340118756,1728627038301,-320.122205,0.00027872,2]
[340118757,1728627038310,-473.23260901,0.00028304,2]
[340118758,1728627038319,-169.205087,0.00028383,2]
[340118759,1728627038329,-291.450607,0.00028415,2]
[340118760,1728627038339,-300.0,0.00028471,2]
[340118761,1728627038348,-300.0,0.00028471,2]
[340118762,1728627038357,-10344.75740221,0.00028472,2]
[340118763,1728627039941,-2260.91889839,0.00028472,2]
[340118764,1728627039952,-368.687344,0.00028673,2]
[340118765,1728627039962,-150.0,0.0002885,2]
[340118766,1728627039971,-86.4180076,0.0002885,2]
[340118767,1728627040049,-439.5819924,0.0002885,2]
[340118768,1728627040059,-291.450607,0.000291,2]
[340118769,1728627040070,-465.41163045,0.00029719,2]
[340118770,1728627040081,-183.7,0.0003,120]
[340118771,1728627040091,-1760.86795159,0.00030411,2]
[340118784,1728627062358,2212.39266777,0.00022,2]
[340118803,1728627947888,-343.674916,0.00026986,2]
[340118804,1728627947914,-173.291997,0.00028012,2]
[340118805,1728627948058,-169.63565,0.00028559,2]
[340118806,1728627948083,-173.291997,0.00028697,2]
[340118807,1728627948108,-3420.910719,0.00028716,2]
[340118808,1728627948132,-300.0,0.00028912,2]
[340118809,1728627948158,-300.0,0.00028912,2]
[340118810,1728627948187,-3166.93968284,0.00028913,2]
[340118811,1728627948211,-352.823684,0.00028913,2]
[340118812,1728627948235,-526.0,0.0002907,2]
[340118813,1728627948260,-159.328543,0.00029088,2]
[340118814,1728627948283,-173.291997,0.00029382,2]
[340118815,1728627948306,-160.0,0.00029568,3]
[340118816,1728627948331,-6812.62464506,0.00029902,2]
[340118817,1728627948354,-1000.0,0.0003,120]
[340118818,1728627948377,-6812.62464506,0.00030323,2]
[340118819,1728627948399,-160.0,0.00030426,4]
[340118820,1728627948426,-159.328543,0.00030603,2]
[340118821,1728627948449,-153.23956764,0.00031,2]
[340118822,1728627948474,-553.17302583,0.00031,120]
[340118823,1728627948497,-152.97133806,0.00031,120]
[340118824,1728627948523,-300.0,0.00031,7]
[340118825,1728627948548,-300.0,0.00031,30]
[340118826,1728627948572,-1000.0,0.00031,120]
[340118827,1728627948596,-178.11,0.00031,28]
[340118828,1728627948621,-254.01914924,0.00031005,2]
[340118829,1728627948645,-4864.91572021,0.00031105,2]
[340118830,1728627948670,-420.0,0.00031196,2]
[340118831,1728627948693,-465.02058152,0.00031205,2]
[340118832,1728627948718,-160.0,0.00031284,5]
[340118833,1728627948741,-3120.9395928,0.0003135,2]
[340118834,1728627948765,-151.0,0.0003135,7]
[340118835,1728627948794,-162.360497,0.0003135,7]
[340118836,1728627948819,-254.0191492,0.00031354,2]
[340118837,1728627948844,-500.0,0.00031411,5]
[340118838,1728627948868,-500.0,0.00031424,5]
[340118839,1728627948897,-500.0,0.00031438,5]
[340118840,1728627948923,-504.71210991,0.00031438,5]
[340118841,1728627948949,-154.823414,0.00031448,7]
[340118842,1728627948979,-154.58132,0.00031496,7]
[340118843,1728627949003,-155.12364,0.00031497,7]
[340118844,1728627949028,-151.0,0.00031498,7]
[340118845,1728627949054,-500.0,0.00031498,2]
[340118846,1728627949079,-500.0,0.00031498,2]
[340118847,1728627949105,-500.0,0.00031498,2]
[340118848,1728627949132,-500.0,0.00031498,2]
[340118849,1728627949159,-500.0,0.00031498,2]
[340118850,1728627949184,-500.0,0.00031498,2]
[340118851,1728627949209,-500.0,0.00031498,2]
[340118852,1728627949235,-500.0,0.00031498,2]
[340118853,1728627949261,-500.0,0.00031498,2]
[340118854,1728627949285,-500.0,0.00031498,2]
[340118855,1728627949311,-500.0,0.00031498,2]
[340118856,1728627949336,-500.0,0.00031498,2]
[340118857,1728627949362,-500.0,0.00031498,2]
[340118858,1728627949387,-500.0,0.00031498,2]
[340118859,1728627949415,-500.0,0.00031498,2]
[340118860,1728627949442,-500.0,0.00031498,2]
[340118861,1728627949467,-500.0,0.00031498,2]
[340118862,1728627949493,-525.72272875,0.00031498,2]
[340118863,1728627949518,-500.0,0.00031498,2]
[340118864,1728627949549,-500.0,0.00031498,2]
[340118865,1728627949575,-500.0,0.00031498,2]
[340118866,1728627949601,-500.0,0.00031498,2]
[340118867,1728627949629,-500.0,0.00031498,2]
[340118868,1728627949655,-500.0,0.00031498,2]
[340118869,1728627949682,-500.0,0.00031498,2]
[340118870,1728627949708,-500.0,0.00031498,2]
[340118871,1728627949735,-500.0,0.00031498,2]
[340118872,1728627949761,-500.0,0.00031498,2]
[340118873,1728627949791,-500.0,0.00031498,2]
[340118874,1728627949816,-500.0,0.00031498,2]
[340118875,1728627949842,-500.0,0.00031498,2]
[340118876,1728627949869,-500.0,0.00031498,2]
[340118877,1728627949895,-500.0,0.00031498,2]
[340118878,1728627949920,-500.0,0.00031498,2]
[340118879,1728627949943,-154.756956,0.00031499,7]
[340118880,1728627949965,-153.82783,0.00031499,7]
[340118881,1728627949987,-151.0,0.00031499,7]
[340118882,1728627950011,-156.22122,0.00031499,7]
[340118883,1728627950033,-270.966786,0.00031499,7]
[340118884,1728627950141,-18014.87837223,0.000315,2]
[340118885,1728627950165,-254.0191492,0.00031703,2]
[340118886,1728627950188,-154.1009444,0.00031781,2]
[340118887,1728627950212,-420.0,0.00031803,2]
[340118888,1728627950235,-765.34,0.00031839,3]
[340118889,1728627950258,-3472.39242643,0.00031849,2]
[340118890,1728627950282,-3120.9395928,0.0003185,2]
[340118891,1728627950306,-504.81501226,0.00031873,5]
[340118892,1728627950330,-167.86,0.0003198,10]
[340118893,1728627950357,-9173.25279395,0.0003199,4]
[340118894,1728627950382,-47550.4436954,0.0003199,4]
[340118895,1728627950405,-4000.0,0.00032,30]
[340118896,1728627950430,-150.0,0.00032,120]
[340118897,1728627950455,-1000.0,0.00032,120]
[340118898,1728627950478,-254.0191492,0.00032051,2]
[340118899,1728627950500,-479.233435,0.00032121,10]
[340118900,1728627950526,-160.0,0.00032142,6]
[340118901,1728627950550,-3120.9395928,0.0003235,2]
[340118902,1728627950573,-1000.0,0.00032399,2]
[340118903,1728627950595,-254.0191492,0.000324,2]
[340118904,1728627950618,-201.0,0.0003242,26]
[340118905,1728627950640,-413.4583545,0.00032452,2]
[340118906,1728627950662,-593.99678359,0.00032473,5]
[340118907,1728627950685,-500.0,0.00032473,5]
[340118908,1728627950707,-600.95036103,0.00032488,2]
[340118909,1728627950729,-261.32847181,0.00032488,2]
[340118910,1728627950752,-229.20986711,0.00032488,2]
[340118911,1728627950780,-482.88815562,0.00032488,2]
[340118912,1728627950805,-18346.5055879,0.00032489,4]
[340118913,1728627950828,-95100.8873908,0.00032489,4]
[340118914,1728627950852,-160.83123902,0.00032498,10]
[340118915,1728627950874,-112366.0230811,0.00032499,2]
[340118916,1728627950897,-1007.74667,0.000325,9]
[340118917,1728627950919,-500.0,0.00032673,5]
[340118918,1728627950941,-503.43342571,0.00032673,5]
[340118919,1728627950964,-506.94493133,0.00032673,5]
[340118920,1728627950986,-608.40794977,0.00032673,5]
[340118921,1728627951011,-9173.25279395,0.00032689,4]
[340118922,1728627951036,-47550.4436954,0.00032689,4]
[340118923,1728627951058,-500.5247353,0.0003269,120]
[340118924,1728627951080,-13070.77220518,0.00032699,2]
[340118925,1728627951103,-230.31,0.000327,30]
[340118926,1728627951125,-18729.7,0.000327,14]
[340118927,1728627951147,-343.674916,0.00032776,2]
[340118928,1728627951173,-1000.0,0.00032781,5]
[340118929,1728627951195,-1000.0,0.00032793,5]
[340118930,1728627951216,-1000.0,0.00032807,5]
[340118931,1728627951238,-6241.8791856,0.0003285,2]
[340118932,1728627951260,-306.0,0.00032877,2]
[340118933,1728627951284,-153.0,0.00032877,2]
[340118934,1728627951308,-2061.60610228,0.000329,2]
[340118935,1728627951333,-502.58892221,0.00032973,5]
[340118936,1728627951360,-45866.2639697,0.0003299,5]
[340118937,1728627951384,-95100.8873908,0.0003299,5]
[340118938,1728627951407,-204794.17740847,0.00033,2]
[340118939,1728627951431,-500.0,0.00033,10]
[340118940,1728627951453,-20805.78144783,0.00033,2]
[340118943,1728628001761,-400.0,0.00031007,2]
[340118944,1728628001785,-400.0,0.00031007,2]
[340118945,1728628001811,-19000.0,0.00031008,8]
[340118946,1728628001833,-500.64427429,0.00032673,5]
[340118947,1728628001857,-506.43088937,0.00032673,5]
[340118948,1728628001881,-1989.0,0.0003284,120]
[340118949,1728628001903,-150.01,0.00032999,2]
[340118950,1728628001926,-2681.60500835,0.00032999,2]
[340118951,1728628001949,-12218.26051091,0.00033,2]
[340118952,1728628001977,-1000.0,0.00033,120]
[340118953,1728628001999,-160.0,0.00033,7]
[340118954,1728628002022,-249.80578058,0.00033,5]
[340118955,1728628002045,-207.45,0.00033,30]
[340118956,1728628002069,-560.0,0.00033384,2]
[340118957,1728628002092,-1000.0,0.00033842,5]
[340118958,1728628002115,-200.0,0.00034,120]
[340118959,1728628002137,-560.0,0.00034108,2]
[340118960,1728628002161,-413.4583545,0.00034301,2]
[340118961,1728628002183,-413.4583545,0.00034301,2]
[340118962,1728628002208,-425.5629045,0.00034301,2]
[340118963,1728628002231,-413.4583545,0.00034301,2]
[340118964,1728628002254,-344.9812812,0.00034301,2]
[340118965,1728628002279,-9173.25279395,0.00034332,5]
[340118966,1728628002302,-3043.62149335,0.00034397,2]
[340118967,1728628028935,-1000.0,0.00034,120]
[340118968,1728628028958,-284.27551734,0.00034396,2]
[340118969,1728628028985,-1340.80250418,0.00034396,2]
[340118970,1728628029007,-1956.37850665,0.00034397,2]
[340118971,1728628029029,-154.0414847,0.00034521,2]
[340118972,1728628029052,-208.0396519,0.00034521,2]
[340118973,1728628029074,-400.0,0.00034783,2]
[340118974,1728628029097,-400.0,0.00034783,2]
[340118975,1728628029246,-467.46233523,0.00034784,5]
[340118977,1728628106223,260.19678867,0.00021,2]
[340118978,1728628118317,5977.03108861,0.00021,2]
[340118979,1728628118673,234.48880427,0.00021,2]
[340118980,1728628119438,7947.96080589,0.0002,2]
[340118981,1728628120412,90531.75572663,0.00020377,2]
[340118982,1728628121843,17492.73848636,0.0001,2]
[340118983,1728628123480,14729.37116752,0.0002061,2]
[340118986,1728628216919,99088.57734086,0.0002,2]
[340119016,1728628232042,-726.20672113,0.0003,7]
[340119017,1728628232060,-587.17663188,0.0003,7]
[340119018,1728628232071,-1500.0,0.0003,2]
[340119019,1728628232088,-2992.86097461,0.00032326,2]
[340119063,1728628240077,-9476.68634169,0.00032326,2]
[340119064,1728628240087,-176.411842,0.00032378,2]
[340119065,1728628240096,-400.0,0.00032999,2]
[340119066,1728628240105,-400.0,0.00032999,2]
[340119067,1728628240114,-11226.28175062,0.00032999,4]
[340119073,1728628324446,260.41,0.00022,2]
[340119079,1728628865694,-510.45,0.00035,12]
[340119080,1728628865720,-1000.0,0.00035,120]
[340119081,1728628865745,-5000.0,0.00035,40]
[340119082,1728628865769,-722.417,0.00035348,30]
[340119083,1728628865794,-300.0,0.000363,18]
[340119084,1728628865818,-14809.15590666,0.000364,60]
[340119085,1728628865842,-1000.0,0.00037,120]
[340119086,1728628865872,-297.96898733,0.00037189,15]
[340119087,1728628865898,-235.24217152,0.00037189,15]
[340119088,1728628865923,-500.0,0.00037189,15]
[340119089,1728628865951,-500.0,0.00037189,15]
[340119090,1728628865979,-500.0,0.00037189,15]
[340119091,1728628866005,-500.0,0.00037189,15]
[340119092,1728628866030,-449.73458581,0.00037189,15]
[340119093,1728628866057,-500.0,0.00037189,15]
[340119094,1728628866083,-500.0,0.00037189,15]
[340119095,1728628866108,-500.0,0.00037189,15]
[340119096,1728628866136,-500.0,0.00037189,15]
[340119097,1728628866165,-500.0,0.00037189,15]
[340119098,1728628866195,-500.0,0.00037189,15]
[340119099,1728628866222,-500.0,0.00037189,15]
[340119100,1728628866248,-500.0,0.00037189,15]
[340119101,1728628866274,-500.0,0.00037189,15]
[340119102,1728628866299,-500.0,0.00037189,15]
[340119103,1728628866324,-500.0,0.00037189,15]
[340119104,1728628866350,-592.41706064,0.00037189,15]
[340119105,1728628866375,-500.0,0.00037189,15]
[340119106,1728628866399,-500.0,0.00037189,15]
[340119107,1728628866424,-500.0,0.00037189,15]
[340119108,1728628866450,-500.0,0.00037189,15]
[340119109,1728628866475,-500.0,0.00037189,15]
[340119110,1728628866621,-500.0,0.00037189,15]
[340119111,1728628866647,-500.0,0.00037189,15]
[340119112,1728628866672,-500.0,0.00037189,15]
[340119113,1728628866699,-500.0,0.00037189,15]
[340119114,1728628866723,-500.0,0.00037189,15]
[340119115,1728628866748,-500.0,0.00037189,15]
[340119116,1728628866773,-500.0,0.00037189,15]
[340119117,1728628866797,-500.0,0.00037189,15]
[340119118,1728628866822,-500.0,0.00037189,15]
[340119119,1728628866846,-500.0,0.00037189,15]
[340119120,1728628866872,-500.0,0.00037189,15]
[340119121,1728628866897,-500.0,0.00037189,15]
[340119122,1728628866922,-500.0,0.00037189,15]
[340119123,1728628866949,-500.0,0.00037189,15]
[340119124,1728628866976,-500.0,0.00037189,15]
[340119125,1728628867000,-500.0,0.00037189,15]
[340119126,1728628867025,-500.0,0.00037189,15]
[340119127,1728628867049,-500.0,0.00037189,15]
[340119128,1728628867074,-500.0,0.00037189,15]
[340119129,1728628867104,-500.0,0.00037189,15]
[340119130,1728628867129,-500.0,0.00037189,15]
[340119131,1728628867153,-500.0,0.00037189,15]
[340119132,1728628867182,-499.99999999,0.00037189,15]
[340119133,1728628867209,-500.0,0.00037189,15]
[340119134,1728628867233,-500.0,0.00037189,15]
[340119135,1728628867257,-500.0,0.00037189,15]
[340119136,1728628867282,-500.0,0.00037189,15]
[340119137,1728628867306,-500.0,0.00037189,15]
[340119138,1728628867331,-500.0,0.00037189,15]
[340119139,1728628867355,-648.96716379,0.00037189,15]
[340119140,1728628867379,-500.0,0.00037189,15]
[340119141,1728628867403,-500.0,0.00037189,15]
[340119142,1728628867427,-500.0,0.00037189,15]
[340119143,1728628867452,-500.0,0.00037189,15]
[340119144,1728628867476,-500.0,0.00037189,15]
[340119145,1728628867500,-500.0,0.00037189,15]
[340119146,1728628867525,-500.0,0.00037189,15]
[340119147,1728628867550,-500.0,0.00037189,15]
[340119148,1728628867587,-500.0,0.00037189,15]
[340119149,1728628867616,-500.0,0.00037189,15]
[340119150,1728628867641,-500.0,0.00037189,15]
[340119151,1728628867666,-500.0,0.00037189,15]
[340119152,1728628867690,-500.0,0.00037189,15]
[340119153,1728628867720,-30716.08814837,0.000372,103]
[340119154,1728628867746,-847.85,0.00037619,10]
[340119155,1728628867770,-773.6,0.00037619,10]
[340119156,1728628867794,-153.0,0.00037629,120]
[340119157,1728628867819,-153.0,0.00037629,120]
[340119158,1728628867843,-153.0,0.00037629,120]
[340119159,1728628867868,-153.0,0.00037629,120]
[340119160,1728628867893,-153.0,0.00037629,120]
[340119161,1728628867917,-153.0,0.00037629,120]
[340119162,1728628867941,-153.0,0.00037629,120]
[340119163,1728628867970,-153.0,0.00037629,120]
[340119164,1728628867994,-153.0,0.00037629,120]
[340119165,1728628868019,-153.0,0.00037629,120]
[340119166,1728628868043,-153.0,0.00037631,120]
[340119167,1728628868067,-153.0,0.00037631,120]
[340119168,1728628868091,-153.0,0.00037631,120]
[340119169,1728628868115,-153.0,0.00037631,120]
[340119170,1728628868139,-153.0,0.00037631,120]